fUST/lending_fUST_20250509
["ID","MTS","AMOUNT","RATE_DAILY","PERIOD"]
[360329733,1746743451942,-400.83,0.00011232,2]
[360329734,1746743451952,-400.0,0.00011232,2]
[360329735,1746743451962,-400.0,0.00011232,2]
[360329736,1746743451972,-400.0,0.00011232,2]
[360329737,1746743451982,-400.0,0.00011232,2]
[360329738,1746743451993,-400.0,0.00011232,2]
[360329739,1746743452002,-400.0,0.00011232,2]
[360329740,1746743452013,-400.0,0.00011232,2]
[360329741,1746743452023,-400.0,0.00011232,2]
[360329742,1746743452033,-400.0,0.00011232,2]
[360329743,1746743452043,-400.0,0.00011232,2]
[360329744,1746743452052,-400.0,0.00011232,2]
[360329745,1746743452061,-400.0,0.00011232,2]
[360329746,1746743452071,-402.53877945,0.00011232,2]
[360329747,1746743452080,-400.0,0.00011232,2]
[360329748,1746743452089,-400.0,0.00011232,2]
[360329749,1746743452099,-400.0,0.00011232,2]
[360329750,1746743452109,-400.0,0.00011232,2]
[360329751,1746743452120,-400.0,0.00011232,2]
[360329752,1746743452129,-549.9,0.00011232,2]
[360329753,1746743452138,-212.35,0.00011232,2]
[360329754,1746743452148,-204.59,0.00011232,2]
[360329755,1746743452158,-482.6107464,0.00011232,2]
[360329756,1746743452168,-400.0,0.00011232,2]
[360329757,1746743452178,-400.0,0.00011232,2]
[360329758,1746743452187,-400.0,0.00011232,2]
[360329759,1746743452197,-400.0,0.00011232,2]
[360329760,1746743452206,-400.0,0.00011232,2]
[360329761,1746743452215,-209.02321507,0.00011232,2]
[360329762,1746743452225,-500.0,0.00011273,2]
[360329763,1746743452234,-500.0,0.00011273,2]
[360329764,1746743452244,-500.0,0.00011273,2]
[360329765,1746743452255,-500.0,0.00011273,2]
[360329766,1746743452266,-500.0,0.00011273,2]
[360329767,1746743452276,-500.0,0.00011273,2]
[360329768,1746743452286,-500.0,0.00011273,2]
[360329769,1746743452296,-500.0,0.00011273,2]
[360329770,1746743452305,-500.0,0.00011273,2]
[360329771,1746743452315,-404.93796266,0.00011273,2]
[360329772,1746743452325,-346.97646046,0.00011273,2]
[360329773,1746743452335,-340.44994791,0.00011273,2]
[360329774,1746743452344,-500.0,0.00011273,2]
[360329775,1746743452354,-425.60220786,0.00011273,2]
[360329776,1746743452364,-500.0,0.00011273,2]
[360329777,1746743452373,-500.0,0.00011273,2]
[360329778,1746743452383,-500.0,0.00011273,2]
[360329779,1746743452392,-500.0,0.00011273,2]
[360329780,1746743452402,-618.5551054,0.00011477,2]
[360329781,1746743452410,-400.0,0.00011506,2]
[360329782,1746743452420,-400.0,0.00011506,2]
[360329783,1746743452430,-367.62,0.00011506,2]
[360329784,1746743452440,-405.58664551,0.00011506,2]
[360329785,1746743452449,-461.26404211,0.00011506,2]
[360329786,1746743452459,-400.0,0.00011506,2]
[360329787,1746743452469,-492.17664266,0.00011506,2]
[360329788,1746743452478,-400.0,0.00011506,2]
[360329789,1746743452488,-400.0,0.00011506,2]
[360329790,1746743452497,-400.0,0.00011506,2]
[360329791,1746743452507,-400.0,0.00011506,2]
[360329792,1746743452517,-200.0,0.00011506,2]
[360329793,1746743452526,-400.0,0.00011506,2]
[360329794,1746743452535,-400.0,0.00011506,2]
[360329795,1746743452545,-369.57,0.00011506,2]
[360329796,1746743452554,-400.0,0.00011506,2]
[360329797,1746743452564,-400.0,0.00011506,2]
[360329798,1746743452574,-400.0,0.00011506,2]
[360329799,1746743452583,-400.0,0.00011506,2]
[360329800,1746743452592,-192.04,0.00011506,2]
[360329801,1746743452602,-487.94,0.00011506,2]
[360329802,1746743452611,-400.0,0.00011506,2]
[360329803,1746743452621,-400.0,0.00011506,2]
[360329804,1746743452630,-400.0,0.00011506,2]
[360329805,1746743452640,-400.0,0.00011506,2]
[360329806,1746743452650,-400.0,0.00011506,2]
[360329807,1746743452659,-500.0,0.00011506,2]
[360329808,1746743452668,-400.0,0.00011506,2]
[360329809,1746743452678,-152.16,0.00011506,2]
[360329810,1746743452688,-400.0,0.00011506,2]
[360329811,1746743452698,-400.0,0.00011506,2]
[360329812,1746743452708,-406.48833305,0.00011506,2]
[360329813,1746743452718,-400.0,0.00011506,2]
[360329814,1746743452727,-400.0,0.00011506,2]
[360329815,1746743452740,-419.84,0.00011506,2]
[360329816,1746743452749,-150.98,0.00011506,2]
[360329817,1746743452759,-221.89,0.00011506,2]
[360329818,1746743452768,-400.0,0.00011506,2]
[360329819,1746743452779,-470.61960958,0.00011506,2]
[360329820,1746743452788,-400.0,0.00011506,2]
[360329821,1746743452798,-400.0,0.00011506,2]
[360329822,1746743452807,-466.38476641,0.00011506,2]
[360329823,1746743452817,-1743.02,0.00011506,2]
[360329824,1746743452830,-400.0,0.00011506,2]
[360329825,1746743452839,-400.0,0.00011506,2]
[360329826,1746743452849,-400.0,0.00011506,2]
[360329827,1746743452858,-400.0,0.00011506,2]
[360329828,1746743452868,-400.0,0.00011506,2]
[360329829,1746743452878,-400.0,0.00011506,2]
[360329830,1746743452887,-238.8,0.00011506,2]
[360329831,1746743452896,-400.0,0.00011506,2]
[360329832,1746743452905,-400.0,0.00011506,2]
[360329833,1746743452915,-1784.68,0.00011506,2]
[360329834,1746743452925,-400.0,0.00011506,2]
[360329835,1746743452936,-400.0,0.00011506,2]
[360329836,1746743452945,-400.0,0.00011506,2]
[360329837,1746743452955,-400.0,0.00011506,2]
[360329838,1746743452964,-400.0,0.00011506,2]
[360329839,1746743452973,-400.0,0.00011506,2]
[360329840,1746743452982,-400.0,0.00011506,2]
[360329841,1746743452992,-400.0,0.00011506,2]
[360329842,1746743453105,-400.0,0.00011506,2]
[360329843,1746743453135,-400.0,0.00011506,2]
[360329844,1746743453145,-417.60361028,0.00011506,2]
[360329845,1746743453154,-175.20467805,0.00011506,2]
[360329846,1746743453163,-400.0,0.00011506,2]
[360329847,1746743453172,-400.0,0.00011506,2]
[360329848,1746743453182,-400.0,0.00011506,2]
[360329849,1746743453191,-505.01,0.00011506,2]
[360329850,1746743453201,-400.0,0.00011506,2]
[360329851,1746743453211,-526.36,0.00011506,2]
[360329852,1746743453222,-400.0,0.00011506,2]
[360329853,1746743453232,-400.0,0.00011506,2]
[360329854,1746743453242,-400.0,0.00011506,2]
[360329855,1746743453253,-400.0,0.00011506,2]
[360329856,1746743453262,-151.04,0.00011506,2]
[360329857,1746743453271,-400.0,0.00011506,2]
[360329858,1746743453281,-549.9,0.00011506,2]
[360329859,1746743453291,-400.0,0.00011506,2]
[360329860,1746743453300,-400.0,0.00011506,2]
[360329861,1746743453309,-500.0,0.00011524,2]
[360329862,1746743453319,-501.70788395,0.00011553,2]
[360329863,1746743453329,-167.34296163,0.00011653,2]
[360329864,1746743453340,-151.0,0.000117,2]
[360329865,1746743453350,-308.62053608,0.0001178,2]
[360329866,1746743453360,-400.0,0.0001178,2]
[360329867,1746743453370,-400.0,0.0001178,2]
[360329868,1746743453379,-400.0,0.0001178,2]
[360329869,1746743453390,-400.0,0.0001178,2]
[360329870,1746743453399,-400.0,0.0001178,2]
[360329871,1746743453409,-400.0,0.0001178,2]
[360329872,1746743453420,-400.0,0.0001178,2]
[360329873,1746743453432,-400.0,0.0001178,2]
[360329874,1746743453442,-400.0,0.0001178,2]
[360329875,1746743453452,-400.0,0.0001178,2]
[360329876,1746743453462,-547.68224301,0.0001178,2]
[360329877,1746743453472,-487.94,0.0001178,2]
[360329878,1746743453482,-400.0,0.0001178,2]
[360329879,1746743453491,-400.0,0.0001178,2]
[360329880,1746743453501,-400.0,0.0001178,2]
[360329881,1746743453511,-264.8,0.0001178,2]
[360329882,1746743453520,-400.0,0.0001178,2]
[360329883,1746743453530,-500.0,0.0001178,2]
[360329884,1746743453540,-400.0,0.0001178,2]
[360329885,1746743453550,-400.0,0.0001178,2]
[360329886,1746743453560,-400.0,0.0001178,2]
[360329887,1746743453569,-400.0,0.0001178,2]
[360329888,1746743453579,-1743.02,0.0001178,2]
[360329889,1746743453589,-412.97,0.0001178,2]
[360329890,1746743453598,-400.0,0.0001178,2]
[360329891,1746743453608,-464.25,0.0001178,2]
[360329892,1746743453617,-400.0,0.0001178,2]
[360329893,1746743453627,-473.81,0.0001178,2]
[360329894,1746743453636,-400.0,0.0001178,2]
[360329895,1746743453645,-1784.68,0.0001178,2]
[360329896,1746743453655,-374.81504726,0.0001178,2]
[360329897,1746743453665,-400.0,0.0001178,2]
[360329898,1746743453675,-400.0,0.0001178,2]
[360329899,1746743453686,-400.0,0.0001178,2]
[360329900,1746743453695,-400.0,0.0001178,2]
[360329901,1746743453705,-400.0,0.0001178,2]
[360329902,1746743453715,-400.0,0.0001178,2]
[360329903,1746743453724,-400.0,0.0001178,2]
[360329904,1746743453735,-400.0,0.0001178,2]
[360329905,1746743453746,-400.0,0.0001178,2]
[360329906,1746743453756,-400.0,0.0001178,2]
[360329907,1746743453766,-167.12,0.0001178,2]
[360329908,1746743453775,-400.0,0.0001178,2]
[360329909,1746743453786,-400.0,0.0001178,2]
[360329910,1746743453796,-400.0,0.0001178,2]
[360329911,1746743453806,-549.9,0.0001178,2]
[360329912,1746743453816,-219.53,0.0001178,2]
[360329913,1746743453826,-400.0,0.0001178,2]
[360329914,1746743453836,-500.000001,0.000118,2]
[360329915,1746743453846,-6489.45795446,0.000119,2]
[360329916,1746743453856,-151.0,0.00012,2]
[360329917,1746743453866,-167.34296162,0.00012013,2]
[360329918,1746743453875,-400.0,0.00012054,2]
[360329919,1746743453885,-364.53,0.00012054,2]
[360329920,1746743453894,-400.0,0.00012054,2]
[360329921,1746743453904,-400.0,0.00012054,2]
[360329922,1746743453915,-400.0,0.00012054,2]
[360329923,1746743453926,-514.36,0.00012054,2]
[360329924,1746743453938,-400.84,0.00012054,2]
[360329925,1746743453948,-192.45,0.00012054,2]
[360329926,1746743453958,-400.0,0.00012054,2]
[360329927,1746743453967,-487.94,0.00012054,2]
[360329928,1746743453978,-400.0,0.00012054,2]
[360329929,1746743453988,-400.0,0.00012054,2]
[360329930,1746743453998,-156.24,0.00012054,2]
[360329931,1746743454008,-400.0,0.00012054,2]
[360329932,1746743454018,-400.0,0.00012054,2]
[360329933,1746743454028,-221.76520313,0.00012054,2]
[360329934,1746743454039,-313.15,0.00012054,2]
[360329935,1746743454050,-170.38,0.00012054,2]
[360329936,1746743454060,-1743.02,0.00012054,2]
[360329937,1746743454070,-400.0,0.00012054,2]
[360329938,1746743454080,-400.0,0.00012054,2]
[360329939,1746743454090,-400.0,0.00012054,2]
[360329940,1746743454100,-1784.68,0.00012054,2]
[360329941,1746743454110,-400.0,0.00012054,2]
[360329942,1746743454119,-400.0,0.00012054,2]
[360329943,1746743454129,-400.0,0.00012054,2]
[360329944,1746743454139,-400.0,0.00012054,2]
[360329945,1746743454148,-400.0,0.00012054,2]
[360329946,1746743454157,-400.0,0.00012054,2]
[360329947,1746743454167,-282.21,0.00012054,2]
[360329948,1746743454176,-400.0,0.00012054,2]
[360329949,1746743454187,-400.0,0.00012054,2]
[360329950,1746743454196,-400.0,0.00012054,2]
[360329951,1746743454206,-400.0,0.00012054,2]
[360329952,1746743454217,-301.57,0.00012054,2]
[360329953,1746743454227,-527.87,0.00012054,2]
[360329954,1746743454236,-549.9,0.00012054,2]
[360329955,1746743454247,-400.0,0.00012054,2]
[360329956,1746743454258,-232.0,0.000121,2]
[360329957,1746743454268,-1241.4794526,0.00012147,2]
[360329958,1746743454277,-151.0,0.000123,2]
[360329959,1746743454288,-400.0,0.00012328,2]
[360329960,1746743454298,-400.0,0.00012328,2]
[360329961,1746743454308,-481.0,0.00012328,2]
[360329962,1746743454318,-400.0,0.00012328,2]
[360329963,1746743454328,-400.0,0.00012328,2]
[360329964,1746743454337,-487.94,0.00012328,2]
[360329965,1746743454347,-358.16,0.00012328,2]
[360329966,1746743454356,-400.0,0.00012328,2]
[360329967,1746743454366,-548.35,0.00012328,2]
[360329968,1746743454378,-400.0,0.00012328,2]
[360329969,1746743454388,-1743.02,0.00012328,2]
[360329970,1746743454398,-400.0,0.00012328,2]
[360329971,1746743454408,-400.0,0.00012328,2]
[360329972,1746743454418,-400.0,0.00012328,2]
[360329973,1746743454428,-1784.68,0.00012328,2]
[360329974,1746743454439,-400.0,0.00012328,2]
[360329975,1746743454449,-400.0,0.00012328,2]
[360329976,1746743454458,-400.0,0.00012328,2]
[360329977,1746743454469,-400.0,0.00012328,2]
[360329978,1746743454478,-400.0,0.00012328,2]
[360329979,1746743454488,-259.01,0.00012328,2]
[360329980,1746743454498,-400.0,0.00012328,2]
[360329981,1746743454507,-400.0,0.00012328,2]
[360329982,1746743454517,-400.0,0.00012328,2]
[360329983,1746743454526,-400.0,0.00012328,2]
[360329984,1746743454536,-549.9,0.00012328,2]
[360329985,1746743454546,-400.0,0.00012328,2]
[360329986,1746743454556,-315.33,0.00012329,2]
[360329987,1746743454566,-601.31,0.00012329,2]
[360329988,1746743454576,-501.09,0.00012329,2]
[360329989,1746743454585,-417.57,0.00012329,2]
[360329990,1746743454595,-347.98,0.00012329,2]
[360329991,1746743454605,-289.98,0.00012329,2]
[360329992,1746743454615,-241.65,0.00012329,2]
[360329993,1746743454626,-201.38,0.00012329,2]
[360329994,1746743454636,-167.81,0.00012329,2]
[360329995,1746743454645,-839.1,0.00012329,2]
[360329996,1746743454655,-6489.45795433,0.00012348,2]
[360329997,1746743454665,-474.222,0.0001239,2]
[360329998,1746743454674,-160.0,0.00012436,2]
[360329999,1746743454684,-422.07246323,0.00012437,2]
[360330000,1746743454693,-160.0,0.00012437,2]
[360330001,1746743454703,-212.10144473,0.00012437,2]
[360330002,1746743454713,-842.21467215,0.00012437,2]
[360330003,1746743454722,-160.0,0.00012437,2]
[360330004,1746743454731,-160.0,0.00012437,2]
[360330005,1746743454741,-160.0,0.00012439,2]
[360330006,1746743454754,-160.0,0.00012439,2]
[360330007,1746743454764,-160.0,0.00012439,2]
[360330008,1746743454773,-12615.23506105,0.00012439,2]
[360330009,1746743454784,-160.0,0.00012439,2]
[360330010,1746743454793,-160.0,0.00012439,2]
[360330011,1746743454802,-400.90640825,0.000125,2]
[360330012,1746743454812,-290.16,0.00012602,2]
[360330013,1746743454822,-231.95,0.00012602,2]
[360330014,1746743454831,-188.13932293,0.00012602,2]
[360330015,1746743454841,-400.0,0.00012602,2]
[360330016,1746743454850,-487.94,0.00012602,2]
[360330017,1746743454859,-400.0,0.00012602,2]
[360330018,1746743454869,-400.0,0.00012602,2]
[360330019,1746743454879,-1743.02,0.00012602,2]
[360330020,1746743454888,-400.0,0.00012602,2]
[360330021,1746743454898,-196.48,0.00012602,2]
[360330022,1746743454907,-400.0,0.00012602,2]
[360330023,1746743454916,-1784.68,0.00012602,2]
[360330024,1746743454927,-400.0,0.00012602,2]
[360330025,1746743454937,-400.0,0.00012602,2]
[360330026,1746743454947,-400.0,0.00012602,2]
[360330027,1746743454956,-400.0,0.00012602,2]
[360330028,1746743454965,-478.47,0.00012602,2]
[360330029,1746743454975,-398.39,0.00012602,2]
[360330030,1746743454985,-293.37,0.00012602,2]
[360330031,1746743454995,-400.0,0.00012602,2]
[360330032,1746743455004,-545.82,0.00012602,2]
[360330033,1746743455014,-549.9,0.00012602,2]
[360330034,1746743455024,-400.0,0.00012602,2]
[360330035,1746743455034,-151.0,0.000127,2]
[360330036,1746743455044,-6489.45795433,0.00012797,2]
[360330037,1746743455053,-150.194,0.00012855,2]
[360330038,1746743455063,-150.401,0.00012855,2]
[360330039,1746743455073,-150.0,0.00012855,2]
[360330040,1746743455082,-400.0,0.00012876,2]
[360330041,1746743455092,-487.94,0.00012876,2]
[360330042,1746743455101,-400.0,0.00012876,2]
[360330043,1746743455112,-400.0,0.00012876,2]
[360330044,1746743455122,-1743.02,0.00012876,2]
[360330045,1746743455132,-150.71,0.00012876,2]
[360330046,1746743455143,-400.0,0.00012876,2]
[360330047,1746743455154,-1784.68,0.00012876,2]
[360330048,1746743455163,-400.0,0.00012876,2]
[360330049,1746743455173,-400.0,0.00012876,2]
[360330050,1746743455183,-515.99087871,0.00012876,2]
[360330051,1746743455192,-400.0,0.00012876,2]
[360330052,1746743455201,-293.16,0.00012876,2]
[360330053,1746743455210,-549.9,0.00012876,2]
[360330054,1746743455220,-400.0,0.00012876,2]
[360330055,1746743455230,-7048.34712414,0.000129,2]
[360330056,1746743455239,-7048.34712414,0.00012952,2]
[360330057,1746743455249,-151.0,0.00013,2]
[360330058,1746743455258,-155.0,0.00013025,2]
[360330059,1746743455267,-151.0,0.000131,2]
[360330060,1746743455277,-400.0,0.0001315,2]
[360330061,1746743455286,-487.94,0.0001315,2]
[360330062,1746743455295,-400.0,0.0001315,2]
[360330063,1746743455305,-400.0,0.0001315,2]
[360330064,1746743455314,-1743.02,0.0001315,2]
[360330065,1746743455323,-400.0,0.0001315,2]
[360330066,1746743455332,-1784.68,0.0001315,2]
[360330067,1746743455341,-400.0,0.0001315,2]
[360330068,1746743455350,-490.61,0.0001315,2]
[360330069,1746743455360,-400.0,0.0001315,2]
[360330070,1746743455370,-549.9,0.0001315,2]
[360330071,1746743455379,-400.0,0.0001315,2]
[360330072,1746743455388,-6489.45795433,0.00013245,2]
[360330073,1746743455397,-151.0,0.000133,2]
[360330074,1746743455407,-151.0,0.000134,2]
[360330075,1746743455416,-400.0,0.00013424,2]
[360330076,1746743455426,-487.94,0.00013424,2]
[360330077,1746743455436,-400.0,0.00013424,2]
[360330078,1746743455446,-400.0,0.00013424,2]
[360330079,1746743455456,-1743.02,0.00013424,2]
[360330080,1746743455466,-497.32999999,0.00013424,2]
[360330081,1746743455475,-1784.68,0.00013424,2]
[360330082,1746743455484,-400.0,0.00013424,2]
[360330083,1746743455494,-373.38353383,0.00013424,2]
[360330084,1746743455504,-549.9,0.00013424,2]
[360330085,1746743455513,-364.68,0.00013424,2]
[360330086,1746743455523,-6489.45795433,0.00013693,2]
[360330087,1746743455532,-400.0,0.00013698,2]
[360330088,1746743455542,-487.94,0.00013698,2]
[360330089,1746743455584,-400.0,0.00013698,2]
[360330090,1746743455593,-335.25,0.00013698,2]
[360330091,1746743455602,-1000.0,0.00013698,2]
[360330092,1746743455611,-1000.0,0.00013698,2]
[360330093,1746743455620,-1743.02,0.00013698,2]
[360330094,1746743455629,-1784.68,0.00013698,2]
[360330095,1746743455638,-400.0,0.00013698,2]
[360330096,1746743455647,-549.9,0.00013698,2]
[360330097,1746743455656,-501.91895765,0.00013699,2]
[360330098,1746743455665,-499.969846,0.00013699,2]
[360330099,1746743455673,-500.0,0.00013699,2]
[360330100,1746743455683,-500.0,0.00013699,2]
[360330101,1746743455692,-500.0,0.00013699,2]
[360330102,1746743455701,-500.0,0.00013699,2]
[360330103,1746743455712,-500.0,0.00013699,2]
[360330104,1746743455722,-500.0,0.00013699,2]
[360330105,1746743455731,-500.0,0.00013699,2]
[360330106,1746743455741,-500.0,0.00013699,2]
[360330107,1746743455754,-543.00039726,0.00013699,2]
[360330108,1746743455764,-151.0,0.000137,2]
[360330109,1746743455774,-151.0,0.000137,2]
[360330110,1746743455784,-1022.35,0.000139,2]
[360330111,1746743455793,-360.0,0.0001397,2]
[360330112,1746743455803,-360.0,0.0001397,2]
[360330113,1746743455812,-320.0,0.0001397,2]
[360330114,1746743455824,-320.0,0.0001397,2]
[360330115,1746743455833,-400.0,0.00013972,2]
[360330116,1746743455842,-487.94,0.00013972,2]
[360330117,1746743455852,-400.0,0.00013972,2]
[360330118,1746743455861,-1743.02,0.00013972,2]
[360330119,1746743455870,-1784.68,0.00013972,2]
[360330120,1746743455879,-400.0,0.00013972,2]
[360330121,1746743455888,-549.9,0.00013972,2]
[360330122,1746743455897,-59154.90984681,0.00014,7]
[360330123,1746743455906,-151.0,0.00014,2]
[360330124,1746743455916,-6489.45795433,0.00014141,2]
[360330125,1746743455925,-12953.85601128,0.00014182,2]
[360330126,1746743456074,-43635.7858853,0.00014182,2]
[360330127,1746743456350,284271.38081057,0.00010142,2]
[360330128,1746743456377,85728.61918943,0.00010142,2]
[360330135,1746743548363,-155.0,0.00010211,2]
[360330137,1746743863117,924.75768848,0.00030137,60]
[360330151,1746744262220,1000.0,0.00030136,60]
[360330156,1746744313990,5000.0,0.000301,60]
[360330157,1746744315095,2436.0921404,0.00030137,120]
[360330158,1746744316149,1019.0,0.00030136,60]
[360330167,1746744490634,210000.0,0.0003,60]
[360330168,1746744517577,2000.0,0.000301,60]
[360330203,1746744632702,-250.0,0.0001044,2]
[360330204,1746744632712,-152.27349545,0.00010759,2]
[360330205,1746744632722,-300.0,0.00010766,2]
[360330206,1746744632733,-1200.0,0.00010766,2]
[360330207,1746744632743,-220.0,0.00010766,2]
[360330208,1746744632753,-500.0,0.00010767,2]
[360330209,1746744632763,-500.0,0.00010767,2]
[360330210,1746744632773,-500.0,0.00010767,2]
[360330211,1746744632783,-500.0,0.00010767,2]
[360330212,1746744632793,-324.018836,0.00010767,2]
[360330213,1746744632803,-500.0,0.00010767,2]
[360330214,1746744632812,-500.0,0.00010767,2]
[360330215,1746744632822,-500.0,0.00010767,2]
[360330216,1746744632832,-500.0,0.00010767,2]
[360330217,1746744632842,-500.0,0.00010767,2]
[360330218,1746744632851,-500.0,0.00010767,2]
[360330219,1746744632862,-500.0,0.00010767,2]
[360330220,1746744632872,-500.0,0.00010767,2]
[360330221,1746744632882,-210.9714911,0.00010767,2]
[360330223,1746744632892,-500.0,0.00010767,2]
[360330225,1746744632902,-500.0,0.00010767,2]
[360330227,1746744632912,-500.0,0.00010767,2]
[360330229,1746744632922,-500.0,0.00010767,2]
[360330230,1746744632932,-500.0,0.00010767,2]
[360330231,1746744632942,-500.0,0.00010767,2]
[360330232,1746744632953,-500.0,0.00010767,2]
[360330234,1746744632963,-500.0,0.00010767,2]
[360330236,1746744632973,-500.0,0.00010767,2]
[360330238,1746744632983,-500.0,0.00010767,2]
[360330240,1746744632992,-500.0,0.00010767,2]
[360330242,1746744633001,-250.0,0.00010767,2]
[360330244,1746744633011,-500.0,0.00010767,2]
[360330247,1746744633021,-500.0,0.00010767,2]
[360330249,1746744633031,-500.0,0.00010767,2]
[360330251,1746744633042,-500.0,0.00010767,2]
[360330253,1746744633052,-500.0,0.00010767,2]
[360330255,1746744633062,-500.0,0.00010767,2]
[360330257,1746744633073,-500.0,0.00010767,2]
[360330258,1746744633085,-500.0,0.00010767,2]
[360330259,1746744633095,-500.0,0.00010767,2]
[360330260,1746744633105,-500.0,0.00010767,2]
[360330261,1746744633116,-500.0,0.00010767,2]
[360330262,1746744633126,-627.01939331,0.00010768,2]
[360330263,1746744633136,-166.0984174,0.00010768,2]
[360330264,1746744633146,-543.6372272,0.00010768,2]
[360330265,1746744633156,-500.0,0.00010773,2]
[360330266,1746744633166,-500.0,0.00010773,2]
[360330267,1746744633176,-500.0,0.00010773,2]
[360330268,1746744633186,-151.0,0.00010951,2]
[360330269,1746744633196,-400.0,0.00010958,2]
[360330270,1746744633208,-400.0,0.00010958,2]
[360330271,1746744633218,-400.0,0.00010958,2]
[360330272,1746744633227,-400.0,0.00010958,2]
[360330273,1746744633238,-400.0,0.00010958,2]
[360330274,1746744633248,-400.0,0.00010958,2]
[360330275,1746744633258,-400.0,0.00010958,2]
[360330276,1746744633268,-400.0,0.00010958,2]
[360330277,1746744633278,-400.0,0.00010958,2]
[360330278,1746744633288,-400.0,0.00010958,2]
[360330279,1746744633298,-403.18102126,0.00010958,2]
[360330280,1746744633307,-400.0,0.00010958,2]
[360330281,1746744633317,-400.0,0.00010958,2]
[360330282,1746744633327,-400.0,0.00010958,2]
[360330283,1746744633337,-400.0,0.00010958,2]
[360330284,1746744633347,-489.45,0.00010958,2]
[360330285,1746744633357,-400.0,0.00010958,2]
[360330286,1746744633367,-400.0,0.00010958,2]
[360330287,1746744633377,-400.0,0.00010958,2]
[360330288,1746744633386,-255.32756914,0.00010958,2]
[360330289,1746744633396,-400.0,0.00010958,2]
[360330290,1746744633406,-400.0,0.00010958,2]
[360330291,1746744633415,-400.0,0.00010958,2]
[360330292,1746744633425,-294.73948036,0.00010958,2]
[360330293,1746744633435,-400.0,0.00010958,2]
[360330294,1746744633444,-400.0,0.00010958,2]
[360330295,1746744633456,-400.0,0.00010958,2]
[360330296,1746744633466,-420.12037511,0.00010958,2]
[360330297,1746744633475,-400.0,0.00010958,2]
[360330298,1746744633485,-400.0,0.00010958,2]
[360330299,1746744633494,-225.19832333,0.00010958,2]
[360330300,1746744633507,-174.80167667,0.00010958,2]
[360330301,1746744633517,-505.46,0.00010958,2]
[360330302,1746744633527,-434.43276138,0.00010958,2]
[360330303,1746744633537,-400.0,0.00010958,2]
[360330304,1746744633547,-400.0,0.00010958,2]
[360330305,1746744633556,-400.0,0.00010958,2]
[360330306,1746744633565,-400.0,0.00010958,2]
[360330307,1746744633575,-400.0,0.00010958,2]
[360330308,1746744633584,-400.0,0.00010958,2]
[360330309,1746744633594,-400.0,0.00010958,2]
[360330310,1746744633604,-400.0,0.00010958,2]
[360330311,1746744633614,-400.0,0.00010958,2]
[360330312,1746744633624,-400.0,0.00010958,2]
[360330313,1746744633634,-400.0,0.00010958,2]
[360330314,1746744633643,-283.04,0.00010958,2]
[360330315,1746744633653,-400.0,0.00010958,2]